fUST/lending_fUST_20240227
["ID","MTS","AMOUNT","RATE_DAILY","PERIOD"]
[315388075,1709001043019,-1279.58,0.00019452,2]
[315388078,1709001043031,-500.0,0.00019452,2]
[315388083,1709001043044,-500.0,0.00019452,2]
[315388086,1709001043056,-1108.18,0.00019452,2]
[315388089,1709001043069,-500.0,0.00019452,2]
[315388092,1709001043082,-500.0,0.00019452,2]
[315388094,1709001043093,-500.0,0.00019452,2]
[315388096,1709001043105,-500.0,0.00019452,2]
[315388099,1709001043115,-500.0,0.00019452,2]
[315388102,1709001043125,-500.0,0.00019452,2]
[315388104,1709001043136,-500.90735407,0.00019452,2]
[315388106,1709001043147,-500.0,0.00019452,2]
[315388109,1709001043158,-501.19562815,0.00019452,2]
[315388111,1709001043170,-502.27288732,0.00019452,2]
[315388113,1709001043181,-595.86,0.00019452,2]
[315388115,1709001043192,-480.04968014,0.00019452,2]
[315388116,1709001043205,-524.63,0.00019452,2]
[315388117,1709001043215,-500.0,0.00019452,2]
[315388118,1709001043226,-571.89432157,0.00019452,2]
[315388119,1709001043236,-611.56698539,0.00019452,2]
[315388121,1709001043245,-500.80363811,0.00019452,2]
[315388123,1709001043256,-500.0,0.00019452,2]
[315388125,1709001043267,-500.0,0.00019452,2]
[315388127,1709001043278,-1667.46,0.00019452,2]
[315388128,1709001043289,-500.0,0.00019452,2]
[315388131,1709001043300,-500.0,0.00019452,2]
[315388133,1709001043310,-568.47,0.00019452,2]
[315388135,1709001043321,-500.0,0.00019452,2]
[315388137,1709001043333,-613.06489533,0.00019452,2]
[315388139,1709001043344,-501.08004492,0.00019452,2]
[315388142,1709001043356,-501.35547942,0.00019452,2]
[315388144,1709001043367,-500.0,0.00019452,2]
[315388146,1709001043378,-501.79848938,0.00019452,2]
[315388148,1709001043390,-501.76104599,0.00019452,2]
[315388151,1709001043402,-500.0,0.00019452,2]
[315388154,1709001043413,-9354.3,0.00019452,2]
[315388157,1709001043424,-501.80447594,0.00019452,2]
[315388160,1709001043435,-500.0,0.00019452,2]
[315388163,1709001043446,-501.5242163,0.00019452,2]
[315388165,1709001043457,-501.29042956,0.00019452,2]
[315388167,1709001043467,-500.0,0.00019452,2]
[315388169,1709001043478,-1530.45,0.00019452,2]
[315388171,1709001043489,-2386.22,0.00019452,2]
[315388173,1709001043499,-3028.21,0.00019452,2]
[315388175,1709001043509,-501.71401746,0.00019452,2]
[315388177,1709001043519,-500.0,0.00019452,2]
[315388179,1709001043530,-500.0,0.00019452,2]
[315388182,1709001043540,-500.0,0.00019452,2]
[315388184,1709001043550,-485.44592047,0.00019452,2]
[315388186,1709001043561,-2365.18,0.00019452,2]
[315388188,1709001043571,-721.61,0.00019452,2]
[315388190,1709001043582,-1696.36,0.00019452,2]
[315388192,1709001043592,-500.0,0.00019452,2]
[315388194,1709001043603,-500.0,0.00019452,2]
[315388196,1709001043613,-1748.39,0.00019452,2]
[315388199,1709001043624,-501.13635766,0.00019452,2]
[315388201,1709001043634,-500.0,0.00019452,2]
[315388203,1709001043645,-226.05511992,0.00019452,2]
[315388205,1709001043656,-619.40839332,0.00019452,2]
[315388207,1709001043667,-15593.0,0.00019452,2]
[315388209,1709001043678,-502.85792086,0.00019452,2]
[315388212,1709001043688,-500.0,0.00019452,2]
[315388214,1709001043699,-646.16620991,0.00019452,2]
[315388216,1709001043709,-479.74109791,0.00019452,2]
[315388218,1709001043720,-500.0,0.00019452,2]
[315388220,1709001043731,-500.0,0.00019452,2]
[315388222,1709001043742,-500.0,0.00019452,2]
[315388224,1709001043752,-500.0,0.00019452,2]
[315388226,1709001043761,-500.0,0.00019452,2]
[315388228,1709001043771,-595.5088898,0.00019452,2]
[315388230,1709001043780,-501.70867165,0.00019452,2]
[315388232,1709001043789,-500.0,0.00019452,2]
[315388248,1709001043930,-1837.89,0.00019452,2]
[315388251,1709001043947,-500.77783376,0.00019452,2]
[315388253,1709001043956,-985.55,0.00019452,2]
[315388255,1709001043966,-500.0,0.00019452,2]
[315388257,1709001043974,-500.0,0.00019452,2]
[315388259,1709001043983,-500.0,0.00019452,2]
[315388261,1709001043992,-6273.93,0.00019452,2]
[315388263,1709001044001,-501.95643743,0.00019452,2]
[315388265,1709001044010,-15318.84,0.00019452,2]
[315388267,1709001044019,-529.21,0.00019452,2]
[315388268,1709001044028,-313.3273094,0.00019452,2]
[315388270,1709001044037,-500.0,0.00019452,2]
[315388272,1709001044046,-2997.64,0.00019452,2]
[315388274,1709001044055,-1125.32,0.00019452,2]
[315388276,1709001044064,-500.0,0.00019452,2]
[315388278,1709001044073,-1582.21,0.00019452,2]
[315388280,1709001044082,-3218.82,0.00019452,2]
[315388282,1709001044092,-500.0,0.00019452,2]
[315388284,1709001044102,-2768.68,0.00019452,2]
[315388286,1709001044111,-1083.4,0.00019452,2]
[315388288,1709001044120,-961.55,0.00019452,2]
[315388290,1709001044129,-808.84,0.00019452,2]
[315388292,1709001044138,-2458.27,0.00019452,2]
[315388294,1709001044147,-501.83788764,0.00019452,2]
[315388296,1709001044156,-986.95,0.00019452,2]
[315388298,1709001044166,-1788.4,0.00019452,2]
[315388300,1709001044175,-501.42454899,0.00019452,2]
[315388302,1709001044184,-500.0,0.00019452,2]
[315388304,1709001044193,-1177.48,0.00019452,2]
[315388306,1709001044202,-500.0,0.00019452,2]
[315388308,1709001044211,-562.01,0.00019452,2]
[315388310,1709001044220,-166.666666,0.00019627,2]
[315388312,1709001044230,-798.09570304,0.00019694,2]
[315388314,1709001044239,-1519.40144155,0.00019725,2]
[315388316,1709001044248,-500.0,0.00019725,2]
[315388318,1709001044257,-500.0,0.00019725,2]
[315388320,1709001044267,-500.0,0.00019725,2]
[315388322,1709001044276,-502.71268128,0.00019725,2]
[315388324,1709001044285,-500.0,0.00019726,2]
[315388326,1709001044295,-500.0,0.00019726,2]
[315388328,1709001044304,-500.0,0.00019726,2]
[315388330,1709001044313,-500.0,0.00019726,2]
[315388332,1709001044322,-500.0,0.00019726,2]
[315388334,1709001044331,-500.0,0.00019726,2]
[315388336,1709001044340,-503.19982376,0.00019726,2]
[315388338,1709001044349,-500.0,0.00019726,2]
[315388340,1709001044359,-500.0,0.00019726,2]
[315388342,1709001044369,-500.0,0.00019726,2]
[315388344,1709001044378,-500.0,0.00019726,2]
[315388345,1709001044387,-500.0,0.00019726,2]
[315388347,1709001044401,-500.0,0.00019726,2]
[315388349,1709001044411,-500.0,0.00019726,2]
[315388351,1709001044420,-500.0,0.00019726,2]
[315388353,1709001044430,-500.0,0.00019726,2]
[315388355,1709001044439,-500.0,0.00019726,2]
[315388357,1709001044448,-500.0,0.00019726,2]
[315388359,1709001044457,-500.0,0.00019726,2]
[315388361,1709001044467,-230.19847541,0.00019726,2]
[315388363,1709001044477,-500.0,0.00019726,2]
[315388365,1709001044486,-309.25297592,0.00019726,2]
[315388367,1709001044495,-547.67624046,0.00019726,2]
[315388370,1709001044504,-522.98876347,0.00019726,2]
[315388371,1709001044514,-597.97,0.00019726,2]
[315388373,1709001044523,-504.59579865,0.00019726,2]
[315388375,1709001044531,-500.0,0.00019726,2]
[315388377,1709001044540,-554.84363818,0.00019726,2]
[315388379,1709001044549,-500.0,0.00019726,2]
[315388381,1709001044558,-614.64,0.00019726,2]
[315388383,1709001044567,-1075.97,0.00019726,2]
[315388385,1709001044576,-500.0,0.00019726,2]
[315388387,1709001044585,-502.13809935,0.00019726,2]
[315388389,1709001044595,-500.0,0.00019726,2]
[315388391,1709001044606,-500.0,0.00019726,2]
[315388393,1709001044616,-1607.8,0.00019726,2]
[315388395,1709001044625,-500.0,0.00019726,2]
[315388397,1709001044634,-1279.58,0.00019726,2]
[315388399,1709001044642,-1108.18,0.00019726,2]
[315388401,1709001044652,-500.0,0.00019726,2]
[315388403,1709001044661,-500.0,0.00019726,2]
[315388405,1709001044670,-500.0,0.00019726,2]
[315388407,1709001044679,-595.86,0.00019726,2]
[315388409,1709001044688,-524.63,0.00019726,2]
[315388411,1709001044697,-573.44249112,0.00019726,2]
[315388413,1709001044706,-500.0,0.00019726,2]
[315388415,1709001044715,-500.0,0.00019726,2]
[315388417,1709001044724,-1667.46,0.00019726,2]
[315388419,1709001044734,-326.924848,0.00019726,2]
[315388421,1709001044743,-568.47,0.00019726,2]
[315388423,1709001044751,-500.0,0.00019726,2]
[315388425,1709001044760,-311.25723657,0.00019726,2]
[315388426,1709001044769,-9354.3,0.00019726,2]
[315388428,1709001044778,-500.0,0.00019726,2]
[315388430,1709001044787,-1530.45,0.00019726,2]
[315388432,1709001044796,-2386.22,0.00019726,2]
[315388434,1709001044805,-3028.21,0.00019726,2]
[315388436,1709001044816,-502.3731827,0.00019726,2]
[315388438,1709001044825,-502.32182453,0.00019726,2]
[315388440,1709001044834,-581.55260075,0.00019726,2]
[315388442,1709001044845,-2365.18,0.00019726,2]
[315388444,1709001044855,-721.61,0.00019726,2]
[315388446,1709001044865,-1696.36,0.00019726,2]
[315388448,1709001044874,-500.0,0.00019726,2]
[315388450,1709001044883,-500.0,0.00019726,2]
[315388452,1709001044893,-1748.39,0.00019726,2]
[315388454,1709001044901,-15593.0,0.00019726,2]
[315388456,1709001044911,-186.52193243,0.00019726,2]
[315388458,1709001044920,-411.54897742,0.00019726,2]
[315388460,1709001044930,-500.0,0.00019726,2]
[315388462,1709001044939,-500.0,0.00019726,2]
[315388464,1709001044948,-500.0,0.00019726,2]
[315388466,1709001044957,-500.0,0.00019726,2]
[315388468,1709001044966,-1837.89,0.00019726,2]
[315388470,1709001044975,-985.55,0.00019726,2]
[315388472,1709001044984,-379.90449438,0.00019726,2]
[315388474,1709001044993,-500.0,0.00019726,2]
[315388476,1709001045002,-500.0,0.00019726,2]
[315388478,1709001045011,-6273.93,0.00019726,2]
[315388480,1709001045021,-15318.84,0.00019726,2]
[315388482,1709001045030,-529.21,0.00019726,2]
[315388484,1709001045038,-500.0,0.00019726,2]
[315388486,1709001045047,-2997.64,0.00019726,2]
[315388488,1709001045056,-1125.32,0.00019726,2]
[315388490,1709001045065,-500.0,0.00019726,2]
[315388492,1709001045074,-1582.21,0.00019726,2]
[315388493,1709001045083,-3218.82,0.00019726,2]
[315388496,1709001045093,-500.0,0.00019726,2]
[315388497,1709001045102,-2768.68,0.00019726,2]
[315388499,1709001045111,-1083.4,0.00019726,2]
[315388501,1709001045120,-961.55,0.00019726,2]
[315388503,1709001045129,-808.84,0.00019726,2]
[315388505,1709001045138,-2458.27,0.00019726,2]
[315388507,1709001045147,-986.95,0.00019726,2]
[315388509,1709001045157,-1788.4,0.00019726,2]
[315388511,1709001045166,-500.0,0.00019726,2]
[315388513,1709001045175,-1177.48,0.00019726,2]
[315388515,1709001045185,-500.0,0.00019726,2]
[315388517,1709001045194,-562.01,0.00019726,2]
[315388519,1709001045203,-500.0,0.00019999,2]
[315388521,1709001045213,-500.0,0.00019999,2]
[315388523,1709001045222,-602.67375131,0.0002,2]
[315388525,1709001045232,-502.73428054,0.0002,2]
[315388527,1709001045241,-500.0,0.0002,2]
[315388529,1709001045251,-200.0,0.0002,2]
[315388531,1709001045260,-551.28665408,0.0002,2]
[315388533,1709001045271,-500.0,0.0002,2]
[315388535,1709001045280,-500.0,0.0002,2]
[315388537,1709001045289,-500.0,0.0002,2]
[315388539,1709001045298,-500.0,0.0002,2]
[315388541,1709001045307,-500.0,0.0002,2]
[315388543,1709001045317,-500.0,0.0002,2]
[315388545,1709001045326,-500.0,0.0002,2]
[315388547,1709001045335,-272.80965507,0.0002,2]
[315388549,1709001045344,-500.0,0.0002,2]
[315388551,1709001045354,-500.0,0.0002,2]
[315388553,1709001045362,-151.66681833,0.0002,2]
[315388554,1709001045375,-597.97,0.0002,2]
[315388556,1709001045384,-500.0,0.0002,2]
[315388558,1709001045393,-287.83353781,0.0002,2]
[315388560,1709001045403,-614.64,0.0002,2]
[315388562,1709001045412,-1075.97,0.0002,2]
[315388564,1709001045421,-500.0,0.0002,2]
[315388565,1709001045431,-500.0,0.0002,2]
[315388567,1709001045441,-1607.8,0.0002,2]
[315388570,1709001045451,-1279.58,0.0002,2]
[315388572,1709001045462,-1108.18,0.0002,2]
[315388573,1709001045471,-500.0,0.0002,2]
[315388575,1709001045481,-595.86,0.0002,2]
[315388577,1709001045490,-524.63,0.0002,2]
[315388579,1709001045499,-500.0,0.0002,2]
[315388581,1709001045508,-1667.46,0.0002,2]
[315388583,1709001045517,-568.47,0.0002,2]
[315388585,1709001045526,-500.0,0.0002,2]
[315388587,1709001045535,-9354.3,0.0002,2]
[315388589,1709001045544,-500.0,0.0002,2]
[315388591,1709001045553,-1530.45,0.0002,2]
[315388593,1709001045563,-2386.22,0.0002,2]
[315388595,1709001045572,-3028.21,0.0002,2]
[315388597,1709001045582,-2365.18,0.0002,2]
[315388599,1709001045591,-721.61,0.0002,2]
[315388601,1709001045600,-1696.36,0.0002,2]
[315388603,1709001045609,-500.0,0.0002,2]
[315388605,1709001045618,-500.0,0.0002,2]
[315388608,1709001045627,-1748.39,0.0002,2]
[315388611,1709001045637,-15593.0,0.0002,2]
[315388613,1709001045647,-500.0,0.0002,2]
[315388616,1709001045656,-500.0,0.0002,2]
[315388619,1709001045667,-500.0,0.0002,2]
[315388622,1709001045676,-500.0,0.0002,2]
[315388624,1709001045685,-1837.89,0.0002,2]
[315388626,1709001045694,-985.55,0.0002,2]
[315388628,1709001045703,-500.0,0.0002,2]
[315388630,1709001045714,-500.0,0.0002,2]
[315388632,1709001045723,-6273.93,0.0002,2]
[315388634,1709001045732,-15318.84,0.0002,2]
[315388636,1709001045742,-529.21,0.0002,2]
[315388638,1709001045751,-502.56998248,0.0002,2]
[315388640,1709001045760,-2997.64,0.0002,2]
[315388642,1709001045769,-1125.32,0.0002,2]
[315388644,1709001045778,-500.0,0.0002,2]
[315388645,1709001045787,-1582.21,0.0002,2]
[315388647,1709001045796,-3218.82,0.0002,2]
[315388649,1709001045805,-500.0,0.0002,2]
[315388651,1709001045814,-2768.68,0.0002,2]
[315388653,1709001045823,-1083.4,0.0002,2]
[315388655,1709001045831,-961.55,0.0002,2]
[315388657,1709001045840,-808.84,0.0002,2]
[315388659,1709001045851,-2458.27,0.0002,2]
[315388661,1709001045860,-986.95,0.0002,2]
[315388663,1709001045869,-1788.4,0.0002,2]
[315388665,1709001045878,-504.27548558,0.0002,2]
[315388667,1709001045887,-1177.48,0.0002,2]
[315388669,1709001045897,-500.0,0.0002,2]
[315388671,1709001045906,-798.09570304,0.00020037,2]
[315388673,1709001045915,-306.0,0.00020055,2]
[315388675,1709001045924,-153.0,0.00020055,2]
[315388677,1709001045933,-153.0,0.00020055,2]
[315388679,1709001045942,-153.0,0.00020055,2]
[315388681,1709001045951,-166.666666,0.00020076,2]
[315388683,1709001045960,-1774.3374616,0.00020092,2]
[315388685,1709001045970,-175.5,0.000201,2]
[315388687,1709001045979,-200.5826354,0.00020118,2]
[315388688,1709001045988,-50000.0,0.00020174,5]
[315388689,1709001045997,-1774.33746152,0.00020182,2]
[315388690,1709001046006,-153.0,0.00020192,2]
[315388691,1709001046015,-153.0,0.00020192,2]
[315388692,1709001046025,-155.2480849,0.00020192,2]
[315388693,1709001046034,-455.1304468,0.00020192,2]
[315388694,1709001046042,-153.0,0.00020192,2]
[315388695,1709001046051,-153.0,0.00020192,2]
[315388696,1709001046060,-153.1554265,0.00020192,2]
[315388697,1709001046069,-153.0,0.00020192,2]
[315388698,1709001046078,-153.0,0.00020192,2]
[315388699,1709001046086,-153.0,0.00020192,2]
[315388700,1709001046095,-200.6117409,0.00020192,2]
[315388701,1709001046104,-153.0,0.00020192,2]
[315388702,1709001046113,-153.0,0.00020192,2]
[315388703,1709001046123,-153.0,0.00020192,2]
[315388704,1709001046131,-153.0,0.00020192,2]
[315388705,1709001046140,-153.0,0.00020192,2]
[315388706,1709001046149,-200.6117409,0.00020192,2]
[315388707,1709001046158,-153.0,0.00020192,2]
[315388708,1709001046167,-153.0,0.00020192,2]
[315388709,1709001046176,-200.6117409,0.00020192,2]
[315388710,1709001046184,-153.0,0.00020192,2]
[315388711,1709001046193,-153.0,0.00020192,2]
[315388713,1709001046203,-228.7237367,0.00020192,2]
[315388715,1709001046212,-153.0,0.00020192,2]
[315388717,1709001046221,-153.0,0.00020192,2]
[315388719,1709001046229,-153.0,0.00020192,2]
[315388721,1709001046239,-401.0197433,0.00020192,2]
[315388723,1709001046249,-153.0,0.00020192,2]
[315388725,1709001046258,-306.0,0.00020192,2]
[315388727,1709001046267,-153.0,0.00020192,2]
[315388729,1709001046276,-200.6117409,0.00020192,2]
[315388731,1709001046286,-153.0,0.00020192,2]
[315388733,1709001046295,-153.0,0.00020192,2]
[315388735,1709001046306,-153.0,0.00020192,2]
[315388737,1709001046315,-200.5826354,0.00020255,2]
[315388739,1709001046324,-200.5826354,0.00020255,2]
[315388741,1709001046333,-200.5826354,0.00020255,2]
[315388743,1709001046342,-200.5826354,0.00020255,2]
[315388745,1709001046351,-200.5826354,0.00020255,2]
[315388747,1709001046360,-200.5826354,0.00020255,2]
[315388749,1709001046370,-200.720994,0.00020255,2]
[315388751,1709001046380,-402.5483247,0.00020255,2]
[315388753,1709001046391,-1774.33746152,0.00020272,2]
[315388755,1709001046400,-500.0,0.00020272,2]
[315388757,1709001046409,-500.0,0.00020272,2]
[315388759,1709001046418,-500.0,0.00020273,2]
[315388761,1709001046427,-500.0,0.00020273,2]
[315388763,1709001046437,-500.0,0.00020273,2]
[315388765,1709001046447,-500.0,0.00020273,2]
[315388767,1709001046456,-167.66596435,0.00020273,2]
[315388769,1709001046467,-253.68558529,0.00020273,2]
[315388771,1709001046476,-500.0,0.00020273,2]
[315388773,1709001046484,-500.0,0.00020273,2]
[315388775,1709001046494,-597.97,0.00020273,2]
[315388777,1709001046502,-500.0,0.00020273,2]
[315388778,1709001046511,-614.64,0.00020273,2]
[315388780,1709001046521,-1075.97,0.00020273,2]
[315388782,1709001046530,-563.15,0.00020273,2]
[315388784,1709001046539,-1607.8,0.00020273,2]
[315388786,1709001046548,-1279.58,0.00020273,2]
[315388788,1709001046558,-1108.18,0.00020273,2]
[315388791,1709001046568,-500.0,0.00020273,2]
[315388802,1709001046577,-595.86,0.00020273,2]
[315388804,1709001046677,-524.63,0.00020273,2]
[315388806,1709001046686,-500.0,0.00020273,2]
[315388808,1709001046696,-568.47,0.00020273,2]
[315388810,1709001046706,-623.01471876,0.00020273,2]
[315388812,1709001046715,-9354.3,0.00020273,2]
[315388814,1709001046725,-500.0,0.00020273,2]
[315388816,1709001046734,-1530.45,0.00020273,2]
[315388818,1709001046744,-2386.22,0.00020273,2]
[315388820,1709001046753,-3028.21,0.00020273,2]
[315388822,1709001046763,-2365.18,0.00020273,2]
[315388824,1709001046773,-721.61,0.00020273,2]
[315388826,1709001046782,-1696.36,0.00020273,2]
[315388828,1709001046792,-500.0,0.00020273,2]
[315388830,1709001046802,-500.0,0.00020273,2]
[315388832,1709001046811,-1748.39,0.00020273,2]
[315388834,1709001046821,-15593.0,0.00020273,2]
[315388836,1709001046831,-500.0,0.00020273,2]
[315388838,1709001046841,-502.21773723,0.00020273,2]
[315388840,1709001046850,-500.0,0.00020273,2]
[315388842,1709001046859,-500.0,0.00020273,2]
[315388844,1709001046868,-1837.89,0.00020273,2]
[315388846,1709001046877,-985.55,0.00020273,2]
[315388848,1709001046886,-500.0,0.00020273,2]
[315388850,1709001046895,-500.0,0.00020273,2]
[315388852,1709001046904,-6273.93,0.00020273,2]
[315388853,1709001046913,-15318.84,0.00020273,2]
[315388855,1709001046922,-529.21,0.00020273,2]
[315388857,1709001046931,-2997.64,0.00020273,2]
[315388859,1709001046941,-1125.32,0.00020273,2]
[315388861,1709001046949,-561.43398342,0.00020273,2]
[315388863,1709001046958,-1582.21,0.00020273,2]
[315388865,1709001046968,-3218.82,0.00020273,2]
[315388867,1709001046977,-500.0,0.00020273,2]
[315388869,1709001046986,-2768.68,0.00020273,2]
[315388871,1709001046995,-1083.4,0.00020273,2]
[315388873,1709001047005,-961.55,0.00020273,2]
[315388875,1709001047014,-808.84,0.00020273,2]
[315388877,1709001047023,-2458.27,0.00020273,2]
[315388879,1709001047032,-986.95,0.00020273,2]
[315388881,1709001047041,-1788.4,0.00020273,2]
[315388883,1709001047050,-1177.48,0.00020273,2]
[315388885,1709001047059,-500.0,0.00020273,2]
[315388887,1709001047068,-200.5826354,0.00020308,2]
[315388889,1709001047078,-200.5826354,0.00020308,2]
[315388891,1709001047087,-200.5826354,0.00020308,2]
[315388893,1709001047096,-200.5826354,0.00020308,2]
[315388895,1709001047106,-1774.33746152,0.00020361,2]
[315388896,1709001047115,-960.07696231,0.0002037,2]
[315388897,1709001047124,-798.09570304,0.00020379,2]
[315388898,1709001047133,-1774.33746152,0.00020451,2]
[315388899,1709001047142,-306.0,0.00020466,2]
[315388900,1709001047152,-166.666666,0.00020524,2]
[315388902,1709001047161,-1774.33746152,0.00020541,2]
[315388903,1709001047171,-500.0,0.00020546,2]
[315388904,1709001047180,-500.0,0.00020546,2]
[315388905,1709001047189,-500.0,0.00020547,2]
[315388906,1709001047198,-500.0,0.00020547,2]
[315388907,1709001047207,-507.6639879,0.00020547,2]
[315388908,1709001047217,-500.0,0.00020547,2]
[315388909,1709001047226,-500.0,0.00020547,2]
[315388910,1709001047236,-597.97,0.00020547,2]
[315388911,1709001047246,-500.0,0.00020547,2]
[315388912,1709001047257,-614.64,0.00020547,2]
[315388913,1709001047267,-1075.97,0.00020547,2]
[315388914,1709001047276,-1607.8,0.00020547,2]
[315388915,1709001047286,-1279.58,0.00020547,2]
[315388916,1709001047295,-1108.18,0.00020547,2]
[315388917,1709001047305,-500.0,0.00020547,2]
[315388918,1709001047314,-595.86,0.00020547,2]
[315388919,1709001047323,-524.63,0.00020547,2]
[315388920,1709001047332,-500.0,0.00020547,2]
[315388921,1709001047342,-568.47,0.00020547,2]
[315388922,1709001047351,-9354.3,0.00020547,2]
[315388923,1709001047361,-283.49549148,0.00020547,2]
[315388924,1709001047374,-1530.45,0.00020547,2]
[315388925,1709001047384,-2386.22,0.00020547,2]
[315388926,1709001047394,-3028.21,0.00020547,2]
[315388927,1709001047403,-2365.18,0.00020547,2]
[315388928,1709001047413,-721.61,0.00020547,2]
[315388929,1709001047423,-1696.36,0.00020547,2]
[315388930,1709001047432,-500.0,0.00020547,2]
[315388931,1709001047442,-500.0,0.00020547,2]
[315388932,1709001047451,-1748.39,0.00020547,2]
[315388933,1709001047461,-15593.0,0.00020547,2]
[315388934,1709001047471,-500.0,0.00020547,2]
[315388935,1709001047480,-500.0,0.00020547,2]
[315388936,1709001047489,-500.0,0.00020547,2]
[315388937,1709001047499,-1837.89,0.00020547,2]
[315388938,1709001047508,-985.55,0.00020547,2]
[315388939,1709001047517,-155.85229831,0.00020547,2]
[315388940,1709001047527,-500.0,0.00020547,2]
[315388941,1709001047536,-6273.93,0.00020547,2]
[315388942,1709001047545,-15318.84,0.00020547,2]
[315388943,1709001047554,-529.21,0.00020547,2]
[315388944,1709001047564,-2997.64,0.00020547,2]
[315388945,1709001047574,-1125.32,0.00020547,2]
[315388946,1709001047583,-1582.21,0.00020547,2]
[315388947,1709001047593,-3218.82,0.00020547,2]
[315388948,1709001047602,-500.0,0.00020547,2]
[315388949,1709001047612,-2768.68,0.00020547,2]
[315388950,1709001047622,-1083.4,0.00020547,2]
[315388951,1709001047631,-961.55,0.00020547,2]
[315388952,1709001047641,-808.84,0.00020547,2]
[315388953,1709001047650,-2458.27,0.00020547,2]
[315388954,1709001047660,-986.95,0.00020547,2]
[315388955,1709001047669,-1788.4,0.00020547,2]
[315388956,1709001047678,-1177.48,0.00020547,2]
[315388957,1709001047687,-500.0,0.00020547,2]
[315388958,1709001047697,-1774.33746152,0.00020631,2]
[315388959,1709001047706,-4285.08527681,0.00020666,2]
[315388960,1709001047716,-464.94720882,0.00020666,2]
[315388961,1709001047726,-642.4844085,0.00020666,2]
[315388962,1709001047736,-1284.40857499,0.00020666,2]
[315388963,1709001047746,-5779.20071847,0.00020666,2]
[315388964,1709001047757,-1000.0,0.00020666,5]
[315388965,1709001047768,-35020.12295129,0.00020666,2]
[315388966,1709001047778,-6813.81132976,0.00020666,2]
[315388967,1709001047789,-1774.33746152,0.0002072,2]
[315388968,1709001047802,-798.09570304,0.00020721,2]
[315388969,1709001047812,-500.0,0.00020738,2]
[315388970,1709001047822,-5000.0,0.00020739,5]
[315388971,1709001047831,-65100.45747533,0.00020739,3]
[315388972,1709001047841,-5000.0,0.00020739,5]
[315388973,1709001047850,-40632.90684554,0.00020739,3]
[315388974,1709001047863,-6324.58001645,0.00020739,3]
[315388975,1709001047872,-25529.38047034,0.00020741,3]
[315388976,1709001047882,-1774.33746152,0.0002081,2]
[315388977,1709001047892,-256.63,0.00020812,7]
[315388978,1709001047904,-500.0,0.0002082,2]
[315388979,1709001047914,-500.0,0.0002082,2]
[315388980,1709001047923,-500.0,0.00020821,2]
[315388981,1709001047932,-500.0,0.00020821,2]
[315388982,1709001047941,-500.0,0.00020821,2]
[315388983,1709001047951,-500.0,0.00020821,2]
[315388984,1709001047961,-597.97,0.00020821,2]
[315388985,1709001047970,-500.0,0.00020821,2]
[315388986,1709001047979,-614.64,0.00020821,2]
[315388987,1709001047989,-1075.97,0.00020821,2]
[315388988,1709001047998,-1607.8,0.00020821,2]
[315388989,1709001048008,-1279.58,0.00020821,2]
[315388990,1709001048017,-1108.18,0.00020821,2]
[315388991,1709001048026,-500.0,0.00020821,2]